Cogmind - Beta 10.1 @@@ ROGUE MODE // 2020.09.23 @ 05:32:11 Player: Nimraaz Result: Destroyed by S-10 Pest with Light Assault Rifle Performance ------------- Evolutions (0) 0 Regions Visited (1) 200 Robots Destroyed (7) 35 Value Destroyed (151) 151 Prototype IDs (0) 0 Alien Tech Used (0) 0 Bonus (0) 0 TOTAL SCORE: 386 Bonus ------- None Cogmind --------- Core Integrity 0/250 Matter 273/300 Energy 100/100 System Corruption 0% Temperature Cool (0) Movement Core (200) Ox3 Location -10/Materials Parts ------- > --- POWER (1) -------- (None) > --- PROPULSION (2) --- (None) > --- UTILITY (2) ------ Small Storage Unit Medium Storage Unit > --- WEAPON (2) ------- (None) > --- INVENTORY (10) --- Light Treads Aluminum Leg Aluminum Leg Peak State ------------ > --- POWER ------------ Light Ion Engine > --- PROPULSION ------- Aluminum Leg Aluminum Leg > --- UTILITY ---------- Small Storage Unit Signal Interpreter > --- WEAPON ----------- Light Assault Rifle Light Assault Rifle > --- INVENTORY -------- Ion Engine Light Treads Light Treads Medium Laser Grenade Launcher [Rating: 7] Favorites ----------- Power Light Ion Engine Engine Light Ion Engine Propulsion Aluminum Leg Leg Aluminum Leg Utility Small Storage Unit Storage Small Storage Unit Processor Signal Interpreter Weapon Light Assault Rifle Energy Gun Medium Laser Ballistic Gun Light Assault Rifle Launcher Grenade Launcher Build | -11 -10 ------- Run | Scr Mat Slots Evolved . | . . Power . | . . Propulsion . | . . Utility . | . . Weapon . | . . Parts Attached 12 | 7 5 Power 3 | 2 1 Engine 3 | 2 1 Core . | . . Reactor . | . . Propulsion 2 | 2 . Treads . | . . Leg 2 | 2 . Wheel . | . . Hover . | . . Flight . | . . Utility 3 | 1 2 Device . | . . Storage 2 | 1 1 Processor 1 | . 1 Hackware . | . . Protection . | . . Artifact . | . . Weapon 4 | 2 2 Energy Gun 1 | . 1 Energy Cannon . | . . Ballistic Gun 2 | 2 . Ballistic Cannon . | . . Launcher 1 | . 1 Special Weapon . | . . Impact Weapon . | . . Slashing Weapon . | . . Piercing Weapon . | . . Special Melee Weapon . | . . Unidentified Prototypes . | . . Parts Lost 8 | . 8 Power 2 | . 2 Propulsion 2 | . 2 Utility . | . . Weapon 4 | . 4 Highest Loss Streak 8 | . 8 Average Slot Usage (%) 97 | . 97 Engine 14 | . 14 Leg 27 | . 27 Storage 17 | . 17 Processor 9 | . 9 Ballistic Gun 26 | . 26 Naked Turns . | . . Heaviest Build 20 | 9 20 Greatest Support 20 | 20 20 Greatest Overweight (x) 5 | 2 5 Average Overweight (x) . | . . Largest Inventory Capacity 10 | 6 10 Average Capacity 6 | 5 7 Most Carried 6 | 4 6 Average Carried 4 | 2 5 Final Capacity 10 | 6 10 Final Carried 4 | 4 3 Class Distribution -------------------- 100% | Mutant Dominant Class ---------------- Mutant | -10/Materials Resources | -11 -10 ----------- Run | Scr Mat Matter Collected 319 | 247 72 Remotely . | . . Salvage Created 216 | . 216 Parts 11 | . 11 Haulers Intercepted . | . . Recyclers Shooed . | . . Parts Field Recycled . | . . Retrieved Matter . | . . Parts Self-Destructed . | . . Prevented . | . . Kills | -11 -10 ------- Run | Scr Mat Combat Hostiles Destroyed 6 | . 6 Guns 2 | . 2 AOE 4 | . 4 Classes Destroyed 3 | . 3 Recycler 1 | . 1 Swarmer 3 | . 3 Grunt 3 | . 3 Best Kill Streak 4 | . 4 Combat Bots Only 4 | . 4 Max Kills in Single Turn 3 | . 3 Gunslinging . | . . Exploded 3 | . 3 Melee . | . . Uniques/NPCs Destroyed . | . . Combat | -11 -10 -------- Run | Scr Mat Damage Taken 903 | . 903 Core 253 | . 253 Absorbed by Shields . | . . Core Remaining (%) 100 | 100 . Volleys Fired 29 | 1 28 Largest 2 | 1 2 Hottest 70 | 20 70 Shots Fired 52 | 1 51 Gun 50 | 1 49 Cannon . | . . Launcher 2 | . 2 Special . | . . Kinetic 46 | 1 45 Thermal 4 | . 4 Explosive 2 | . 2 Electromagnetic . | . . Robot Hit Streak 8 | 1 8 Robot Miss Streak 2 | . 2 Penetration Max . | . . Secondary Targets . | . . Shots Hit Robots 35 | 1 34 Core Hits 15 | 1 14 Critical Hits 1 | . 1 Critical Kills . | . . Critical Parts Destroyed 1 | . 1 Melee Attacks . | . . Impact . | . . Slashing . | . . Piercing . | . . Sneak Attacks . | . . Combat Hostiles . | . . Follow-up Attacks . | . . Damage Inflicted 571 | 9 562 Guns 263 | 9 254 Cannons . | . . Explosions 308 | . 308 Melee . | . . Ramming . | . . Kinetic 226 | 9 217 Thermal 37 | . 37 Explosive 308 | . 308 Electromagnetic . | . . Impact . | . . Slashing . | . . Piercing . | . . Highest Corruption . | . . Average Corruption . | . . Corruption Purged . | . . Overload Shots . | . . Overflow Damage . | . . Projectiles . | . . Explosions . | . . Melee . | . . Knockbacks . | . . Impact . | . . Kinetic . | . . Secondary . | . . Self-Inflicted Damage 61 | . 61 Shots 2 | . 2 Rammed . | . . Targets Rammed . | . . Kicked . | . . Crushed . | . . Highest Temperature 114 | . 114 Average Temperature 40 | . 40 Received Heat Transfer 234 | . 234 Siege Activations . | . . Robots Corrupted . | . . Combat Hostiles . | . . Parts Fried . | . . Impact Corruptions . | . . Robots Melted . | . . Combat Hostiles . | . . Parts Melted . | . . Heat Transferred 111 | . 111 Parts Sabotaged . | . . Parts Stolen . | . . Parts Stripped . | . . Power Chain Reactions . | . . Missiles Intercepted . | . . Alert | -11 -10 ------- Run | Scr Mat Peak Influence 115 | . 115 Initial . | . . Average 35 | . 42 Maximum Alert Level . | . . Low Security (%) 100 | 100 100 Level 1 . | . . Level 2 . | . . Level 3 . | . . Level 4 . | . . Level 5 . | . . High Security . | . . Max Security . | . . Squads Dispatched . | . . Investigation . | . . Extermination . | . . Reinforcement . | . . Assault . | . . Garrison . | . . Intercept . | . . Construction Impeded . | . . Haulers Reinforced . | . . Stealth | -11 -10 --------- Run | Scr Mat Distress Signals . | . . Communications Jammed . | . . Distress Signals . | . . Times Spotted 14 | . 14 Peak Tracking Total 7 | . 7 Tactical Retreats 1 | . 1 Traps | -11 -10 ------- Run | Scr Mat Traps Triggered . | . . Indirectly . | . . Trap Hack Attempts . | . . Triggered . | . . Disarmed . | . . Reprogrammed . | . . Reused . | . . Traps Extracted . | . . Installed . | . . Triggered . | . . Machines | -11 -10 ---------- Run | Scr Mat Machines Disabled . | . . Max in Single Turn . | . . Machines Sabotaged . | . . Garrisons Compromised . | . . Overloaded Fab Kills . | . . Fab Network Shutdowns . | . . Hacking | -11 -10 --------- Run | Scr Mat Machines Accessed 1 | . 1 Terminals 1 | . 1 Fabricators . | . . Repair Stations . | . . Recycling Units . | . . Scanalyzers . | . . Garrison Access . | . . Total Hacks 3 | . 3 Successful 2 | . 2 Failed 1 | . 1 Catastrophic . | . . Database Lockouts . | . . Manual . | . . Terminals 3 | . 3 Fabricators . | . . Repair Stations . | . . Recycling Units . | . . Scanalyzers . | . . Garrison Access . | . . Terminal Hacks 2 | . 2 Record 1 | . 1 Robot Analysis 1 | . 1 Fabricator Hacks . | . . Repair Station Hacks . | . . Recycling Unit Hacks . | . . Scanalyzer . | . . Garrison Access Hacks . | . . Unauthorized Hacks . | . . Terminals . | . . Fabricators . | . . Repair Stations . | . . Recycling Units . | . . Scanalyzers . | . . Garrison Access . | . . Data Cores Recovered . | . . Used . | . . Hacking Detections 1 | . 1 Full Trace Events . | . . Feedback Events . | . . Feedback Blocked . | . . Robot Schematics Acquired . | . . Robots Built . | . . Matter . | . . Time . | . . Total Robot Build Rating . | . . Part Schematics Acquired . | . . Parts Built . | . . Matter . | . . Time . | . . Total Part Build Rating . | . . Parts Repaired . | . . Time . | . . Parts Recycled . | . . Recycled Matter . | . . Retrieved Matter . | . . Retrieved Components . | . . Parts Scanalyzed . | . . Part Schematics Acquired . | . . Parts Damaged . | . . Bothacking | -11 -10 ------------ Run | Scr Mat Used RIF Installer . | . . Robots Hacked . | . . Non-combat . | . . Combat . | . . Robot Hacks Applied . | . . Relay Couplers Released . | . . Robots Rewired . | . . Allies Hacked . | . . Hacks Repelled . | . . Allies | -11 -10 -------- Run | Scr Mat Total Allies . | . . Largest Group . | . . Highest-Rated Group . | . . Highest-Rated Ally . | . . Total Orders . | . . Ally Attacks . | . . Total Damage . | . . Kills . | . . Allies Corrupted . | . . Allies Melted . | . . Intel | -11 -10 ------- Run | Scr Mat Robot Analysis Total 1 | . 1 Derelict Logs Recovered . | . . Drone Launches . | . . Drone Recoveries . | . . Exploration | -11 -10 ------------- Run | Scr Mat Turns Passed 416 | 70 346 Spaces Moved 256 | 45 211 Core 14 | 13 1 Treads . | . . Legs 242 | 32 210 Wheels . | . . Hover . | . . Flight . | . . Fastest Speed 50 | 50 120 Average Speed 121 | 119 121 Slowest Speed 300 | 150 300 Overloaded Moves . | . . Propulsion Burnouts . | . . Robots Hopped . | . . Cave-ins Triggered . | . . Exploration Rate (%) 20 | 3 38 Regions Visited 1 Branch Regions . Pre-discovered Areas . | . . Known Exits Taken . | . . Unknown Exits Taken 1 | 1 . Scrap Searched . | . . Spaces Dug . | . . Terrain Destroyed 15 | . 15 Melee . | . . Projectile . | . . AOE 15 | . 15 Terrain Rammed . | . . Walls Destroyed . | . . Machines Disabled . | . . Actions | -11 -10 --------- Run | Scr Mat Total 317 | 57 260 Wait 9 | . 9 Move 255 | 44 211 Hop . | . . Pick Up 9 | 5 4 Fast Attach 7 | 5 2 Attach 4 | 1 3 Detach 1 | . 1 Swap 1 | 1 . Drop 2 | . 2 Fire 29 | 1 28 Melee . | . . Ram . | . . Kick . | . . Crush . | . . Escape Stasis . | . . Rewire . | . . Trap . | . . Miscellaneous . | . . Route ------- -11/Scrapyard -10/Materials (discovered 1 exit: [*Min]) History --------- Turn | Location | Event 19 | -11/Scrapyard | Discovered new exit (range 16) 71 | -11/Scrapyard | Entered Materials 202 | -10/Materials | Discovered new exit (range 12) 316 | -10/Materials | Build established: Mutant 401 | -10/Materials | Core integrity fell below 50% 413 | -10/Materials | Core integrity fell below 20% 417 | -10/Materials | Destroyed by S-10 Pest with Light Assault Rifle Last Messages --------------- R-06 Scavenger collects Sml. Storage Unit. R-06 Scavenger collects Tractor Beam. Discarded Signal Interpreter. Acquired Med. Storage Unit. Acquired 10 matter. Lgt. Ion Engine destroyed. Lgt. Assault Rifle destroyed. S-10 Pest destroyed. K-01 Serf collects debris. Med. Laser destroyed. Lgt. Assault Rifle destroyed. Aluminum Leg destroyed. S-10 Pest destroyed. K-01 Serf collects debris. K-01 Serf destroyed. S-10 Pest destroyed. G-47 Trooper destroyed. Grenade Launcher destroyed. Aluminum Leg destroyed. Ion Engine destroyed. Map ----- +----------------------------------------------------+ | ???????????????????????????????????????????? | | ???????????????????????????????????????????? | | ???????????????????????????????????????????? | | ???????????????????????????????????????????? | | ???????????????????????????????????????????? | | ???????????????????????????????????????????? | | ???????????????????????????????????????????? | | ???????????????????????????????????????????? | | ???????????????????????????????????????????? | | ?????????????????????????????????????????### | | ?????????????????????????????????????????# | | ?????????????????????????????????????????# " | | ?????????????????#######?????????????????# " | | ?????????????????# [[ #?????????????????# " | | ?????????????#???# [= #######???######### | | ?????????????# ??# [= # ##### ##+ | | ?????????????# ??+ # ! | | ?????????????# ?# # < | | ?????????????# ?# # | | ????????????## # # ! #####" "# | | ????????????#T ## ### ######" |"| "# | | ?????????????# w ! # # #"""""""# | | ?????????????# s=% # + ######### | | ?????????????# =*g]= # %+ | | ?????????????# = * # # ########## | | ?????????????# @ % ##### ########## | | ??????# #### # # s##???# # / | | ??????# ##### #""" # | | ??????+ + #""" !# | | ??????# ##########""" # | | ??????# ###+##### #????????# # | | ??????#????# ?????# #????????# # | | ???????????#??????# #????????# + | | ??????????????????# #????????# "Y" # | | ??????????????????# #????????# """ # | | ??????????????????# +????????########## | | ??????????????????# # ???????# + | | ??????????????????# # ??????# # | | ??????????????????# #? ??????# # | | ??????????????????" #? ?????# ## | | ??????????????????T #????????# """ #? | | ??????????????????" ????????# """"" ## | | ??????????????????# ????????# """"" # | | ??????????????????? ?????????# """"" # | | ?????????????????????????????????# """ # | | ?????????????????????????????????########## | | ??????????????????????????????????????????# | | ???????????????????????????????????????##### | | ???????????????????????????????????????# !!! | | ???????????????????????????????????????# !! | +----------------------------------------------------+ Best States ------------- Heat Dissipation 25 Energy Generation 10 Energy Capacity 250 Matter Stores 300 Matter Capacity 300 Sight Range 16 Terrain Scan Density 10 Evasion (%) 40 Item Schematics ----------------- None Robot Schematics ------------------ None Fabricated ------------ Nothing Alien Tech Used ----------------- None Achievements -------------- None Challenges ------------ None Game ------ Seed PhaseStormReplicator Manual? 0 Play Time 00:10:06 Cumulative 2.4 hours Start 2020.09.23 @ 05:20:03 End 2020.09.23 @ 05:32:11 Sessions 1 Manual Loads 0 Difficulty Rogue Special Mode None Game No. 2 Rogue 2 Adventurer 0 Explorer 0 Win Type - Total 0 Types 0/0/0/0/0/0/0/0/0 Lore% 2 Gallery% 6 Achievement% 7 Wizard Run 0 Options --------- ASCII 0 Keyboard 0 Movement Numpad Keybinds 0 Fullscreen 2 Font 18/TerminusBold Map View 76x50 Tactical HUD 0 Map Filters NONE Filters NONE Steam 0 RUN: 512fbe97-a10a-45e0-a29f-bec26926c3a7